bitfinex/quotes_ETHUSD_20220101
["timestamp","ask_amount","ask_price","bid_price","bid_amount"]
[1641066268064,6.15366112,3738.7,3738.6,0.67812319]
[1641066268362,6.15366112,3738.7,3738.6,0.00966319]
[1641066272011,0.00366112,3738.7,3738.6,0.00966319]
[1641066279414,1.78171863,3738.7,3738.6,0.00966319]
[1641066279614,0.00366112,3738.7,3738.6,0.00966319]
[1641066281016,1.7813477,3738.7,3738.6,0.00966319]
[1641066281816,0.00366112,3738.7,3738.6,0.00966319]
[1641066282462,1.78115223,3738.7,3738.6,0.00966319]
[1641066282863,0.00366112,3738.7,3738.6,0.00966319]
[1641066291058,0.00366112,3738.7,3738.4,1.31592076]
[1641066291059,2.55366112,3738.7,3738.4,1.31592076]
[1641066291657,2.55366112,3738.7,3738.5,1.33692]
[1641066294723,0.00366112,3738.7,3738.5,1.33692]
[1641066297671,0.00366112,3738.7,3738.3,0.05320457]
[1641066297872,0.00366112,3738.7,3738.3,0.72185457]
[1641066298075,0.00366112,3738.7,3738.4,0.00113685]
[1641066299271,0.66867,3738.5,3738.4,0.00113685]
[1641066301629,0.66867,3738.5,3738.3,0.66866]
[1641066302228,1.7631191,3738.4,3738.3,0.66866]
[1641066302629,1.7631191,3738.4,3738.3,0.67036528]
[1641066309122,1.76898503,3738.4,3738.3,0.67036528]
[1641066309320,1.76898503,3738.4,3738.3,1.00329968]
[1641066309520,1.76898503,3738.4,3738.3,1.33623408]
[1641066323517,1.76898503,3738.4,3738.3,5.03399168]
[1641066323723,0.00586593,3738.4,3738.3,1.33623408]
[1641066323918,0.00586593,3738.4,3738.3,5.00849684]
[1641066325221,0.00586593,3738.4,3738.3,1.33623408]
[1641066332125,0.00586593,3738.4,3738.3,0.66757408]
[1641066332526,0.00586593,3738.4,3738.3,0.6658688]
[1641066335271,10.31119728,3738.4,3738.3,0.6658688]
[1641066335473,10.31119728,3738.4,3738.1,0.05320486]
[1641066335474,6.6328656,3738.3,3738.1,0.05320486]
[1641066335672,11.17914278,3738.2,3738.1,0.05320486]
[1641066335871,12.94226188,3738.2,3738.1,0.05320486]
[1641066336072,12.94226188,3738.2,3738.1,4.86e-06]
[1641066336274,0.6688525,3737.8,3736.7,0.4013025]
[1641066336476,1.3377,3737.6,3737.3,0.66884]
[1641066336674,4.6631191,3737.4,3737.3,0.66884]
[1641066337075,4.6631191,3737.4,3737.3,0.67622951]
[1641066337677,1.7631191,3737.4,3737.3,0.67622951]
[1641066341748,11.30425288,3737.4,3737.3,0.00738951]
[1641066342168,12.64207288,3737.4,3737.2,0.00795793]
[1641066342466,4.59498435,3737.3,3737.0,0.00909478]
[1641066342866,0.66891,3737.3,3737.0,0.00909478]
[1641066343667,4.55219447,3737.3,3737.0,0.66889]
[1641066343868,4.54710278,3737.3,3737.0,0.66889]
[1641066344067,0.66891,3737.3,3737.1,0.00852636]
[1641066344267,4.5032147,3737.3,3737.1,0.00852636]
[1641066344467,0.66891,3737.3,3737.1,0.00852636]
[1641066351277,1.7631191,3737.4,3737.2,0.66883]
[1641066351680,1.7631191,3737.4,3737.3,0.00738951]
[1641066352279,1.7631191,3737.4,3737.0,0.00909478]
[1641066352479,0.66888,3737.3,3737.0,0.00909478]
[1641066352684,0.66888,3737.3,3737.0,0.67797478]
[1641066353080,0.66888,3737.3,3737.1,0.00852636]
[1641066355022,1.7631191,3737.4,3737.1,0.00852636]
[1641066355023,0.00583865,3737.2,3737.1,0.00852636]
[1641066356024,0.00583865,3737.2,3737.1,1.13173593]
[1641066356222,0.00583865,3737.2,3737.1,0.00852636]
[1641066356827,0.00583865,3737.2,3737.0,0.92740636]
[1641066359374,0.00583865,3737.2,3737.1,1.01518859]
[1641066360474,0.00583865,3737.2,3737.1,0.96518859]
[1641066364524,0.00583865,3737.2,3737.1,1.26518859]
[1641066365771,0.00583865,3737.2,3737.1,4.91390013]
[1641066365978,0.00583865,3737.2,3737.1,1.26518859]
[1641066366374,0.00583865,3737.2,3737.1,4.90109665]
[1641066366577,0.00583865,3737.2,3737.1,1.26518859]
[1641066374078,0.00583865,3737.2,3737.1,6.38944099]
[1641066376411,0.00583865,3737.2,3737.1,6.45535842]
[1641066380663,0.00949985,3737.2,3737.1,6.45535842]
[1641066381867,40.0,3738.0,3737.5,0.66859]
[1641066382070,40.0,3738.0,3737.7,1.2034626]
[1641066382273,0.00454739,3737.9,3737.7,1.2034626]
[1641066382468,0.00454739,3737.9,3737.7,1.5034626]
[1641066382668,40.0,3738.0,3737.8,1.14564229]
[1641066383070,0.00454739,3737.9,3737.8,1.14564229]
[1641066383269,0.00454739,3737.9,3737.8,1.81424229]
[1641066384623,0.00454739,3737.9,3737.8,2.11424229]
[1641066385622,1.76766649,3737.9,3737.8,0.9686]
[1641066386024,1.76766649,3737.9,3737.8,0.6686]
[1641066388878,0.00454739,3737.9,3737.8,0.6686]
[1641066389074,0.00454739,3737.9,3737.8,1.0516]
[1641066392223,2.55454739,3737.9,3737.8,1.0516]
[1641066399835,0.00454739,3737.9,3737.8,0.6686]
[1641066402180,2.55454739,3737.9,3737.8,0.6686]
[1641066402374,0.00454739,3737.9,3737.8,0.6686]
[1641066402575,0.00454739,3737.9,3737.8,1.0516]
[1641066403579,0.00454739,3737.9,3737.8,2.13059071]
[1641066411177,0.00454739,3737.9,3737.8,2.43059071]
[1641066411372,0.00454739,3737.9,3737.8,3.43059071]
[1641066411978,40.00476744,3738.0,3737.8,3.43059071]
[1641066412575,40.00476744,3738.0,3737.8,4.23274361]
[1641066412576,34.65706744,3738.0,3737.8,4.23274361]
[1641066412976,34.65706744,3738.0,3737.8,5.23274361]
[1641066413177,29.30925744,3738.0,3737.8,4.23274361]
[1641066413623,23.96147744,3738.0,3737.8,4.23274361]
[1641066413820,23.96147744,3738.0,3737.8,4.29866104]
[1641066414221,18.61370744,3738.0,3737.8,4.29866104]
[1641066414921,13.26590744,3738.0,3737.8,4.29866104]
[1641066415120,13.26590744,3738.0,3737.9,3.06702118]
[1641066415319,13.26590744,3738.0,3737.9,3.45002118]
[1641066415520,7.91809744,3738.0,3737.9,4.45002118]
[1641066416523,2.57035744,3738.0,3737.9,4.45002118]
[1641066416721,2.57035744,3738.0,3737.9,4.51593861]
[1641066416922,0.3328656,3738.3,3737.9,4.51593861]
[1641066417171,0.3328656,3738.3,3738.1,0.06702118]
[1641066417369,0.3328656,3738.3,3738.2,0.73547118]
[1641066417575,0.3328656,3738.3,3738.2,2.03547118]
[1641066417769,0.33513929,3738.3,3738.2,2.03547118]
[1641066420179,0.33513929,3738.3,3738.2,1.03547118]
[1641066421326,0.33513929,3738.3,3738.2,1.41847118]
[1641066421523,0.1955159,3738.3,3738.2,1.41847118]
[1641066421930,1.958635,3738.3,3738.2,1.41847118]
[1641066422428,1.958635,3738.3,3738.2,1.11847118]
[1641066427277,1.958635,3738.3,3738.2,1.41847118]
[1641066427477,0.1955159,3738.3,3738.2,1.11847118]
[1641066427682,0.1955159,3738.3,3738.2,1.41847118]
[1641066437943,0.1955159,3738.3,3738.2,1.11847118]
[1641066440075,0.1955159,3738.3,3738.2,0.73547118]
[1641066441778,0.1105159,3738.3,3738.2,0.73547118]
[1641066443432,8.93656307,3738.3,3738.2,0.73547118]
[1641066443633,8.93656307,3738.3,3737.8,1.45803794]
[1641066443836,6.2131191,3737.9,3737.8,0.12065794]
[1641066444033,10.63061322,3737.9,3737.8,0.12065794]
[1641066445233,10.63061322,3737.9,3737.8,0.06702118]
[1641066445836,6.18061322,3737.9,3737.8,0.06702118]
[1641066446440,1.7631191,3737.9,3737.8,0.06702118]
[1641066451333,5.91316936,3737.9,3737.8,0.06702118]
[1641066451536,1.7631191,3737.9,3737.8,0.06702118]
[1641066453943,6.01613751,3737.9,3737.8,0.06702118]
[1641066457384,6.01613751,3737.9,3737.7,0.66878]
[1641066457585,6.02218191,3737.9,3737.7,0.66878]
[1641066458426,1.7691635,3737.9,3737.7,0.66878]
[1641066464198,10.57616526,3737.8,3737.4,0.05363732]
[1641066464395,8.0631191,3737.5,3737.4,3.732e-05]
[1641066465390,1.99790886,3737.2,3736.6,1.3378]
[1641066465789,1.99790886,3737.2,3736.7,0.06089378]
[1641066466025,4.5631191,3736.8,3736.7,0.06089378]
[1641066466225,4.5631191,3736.8,3736.7,0.0540727]
[1641066466426,1.7631191,3736.8,3736.7,0.0540727]
[1641066466630,1.7631191,3736.8,3736.7,0.7229627]
[1641066467228,1.7631191,3736.8,3736.7,0.66889]
[1641066471580,1.7631191,3736.8,3736.7,0.96889]
[1641066472781,1.7631191,3736.8,3736.7,0.66889]
[1641066473832,1.7631191,3736.8,3736.7,1.86263374]
[1641066474030,1.7631191,3736.8,3736.7,2.16263374]
[1641066475831,1.7631191,3736.8,3736.7,1.86263374]
[1641066478907,1.8226191,3737.7,3736.7,7.821799]
[1641066479107,1.8226191,3737.7,3737.2,0.66874]
[1641066479310,1.7631191,3737.7,3737.3,0.383]
[1641066479705,1.7631191,3737.7,3737.4,0.00284212]
[1641066480307,1.7631191,3737.7,3737.5,0.6687]
[1641066480707,1.7631191,3737.7,3737.6,0.00170527]
[1641066481336,0.0060444,3737.9,3737.6,0.00170527]
[1641066481530,0.0060444,3737.9,3737.7,0.66865]
[1641066483933,0.0060444,3737.9,3737.6,0.00170527]
[1641066484334,0.0060444,3737.9,3737.3,0.383]
[1641066484792,1.7631191,3737.8,3737.4,0.00284212]
[1641066485598,1.7631191,3737.8,3737.5,0.4012194]
[1641066485801,1.7631191,3737.8,3737.6,0.6688]
[1641066485998,1.7631191,3737.8,3737.6,0.67050527]
[1641066486199,1.7631191,3737.8,3737.7,0.00113685]
[1641066487000,4.5131191,3737.8,3737.7,0.00113685]
[1641066489030,1.7631191,3737.8,3737.7,2.4678955]
[1641066492477,1.7631191,3737.8,3737.7,1.33854685]
[1641066492877,4.5131191,3737.8,3737.7,1.33854685]
[1641066493077,4.5236974,3737.8,3737.7,1.33854685]
[1641066494783,1.7736974,3737.8,3737.7,1.33854685]
[1641066496534,0.0105783,3737.8,3737.7,1.63854685]
[1641066496937,1.7736974,3737.8,3737.7,1.33854685]
[1641066498442,0.0105783,3737.8,3737.7,1.63854685]
[1641066499678,0.0105783,3737.8,3737.7,2.03975065]
[1641066499883,0.0105783,3737.8,3737.7,1.73975065]
[1641066500087,1.7736974,3737.8,3737.7,1.33854685]
[1641066500282,1.7736974,3737.8,3737.7,0.00113685]
[1641066500787,1.7736974,3737.8,3737.6,0.00170527]
[1641066501385,1.7736974,3737.8,3737.3,0.00341054]
[1641066501586,4.1631191,3737.5,3737.4,1.11027287]
[1641066501987,4.1631191,3737.5,3737.4,0.00284212]
[1641066502387,4.1631191,3737.5,3737.3,0.00341054]
[1641066502786,4.1631191,3737.5,3737.4,0.66878]
[1641066503186,4.1631191,3737.5,3737.4,0.67162212]
[1641066503636,1.77281758,3737.5,3737.4,0.67162212]
[1641066508487,0.00969848,3737.5,3737.4,0.67162212]
[1641066518844,0.02027761,3737.5,3737.4,0.67162212]
[1641066523889,0.02027761,3737.5,3737.4,0.66276312]
[1641066533088,0.02027761,3737.5,3737.4,0.659921]
[1641066536349,0.02027761,3737.5,3737.3,0.96873]
[1641066536550,1.7631191,3737.4,3737.3,0.96873]
[1641066536949,1.7631191,3737.4,3737.3,0.97214054]
[1641066539802,0.02027761,3737.5,3737.3,0.97214054]
[1641066540196,0.02027761,3737.5,3737.4,0.00284212]
[1641066549734,0.02394003,3737.5,3737.4,0.00284212]
[1641066551337,3.42394003,3737.5,3737.4,0.00284212]
[1641066554400,0.02394003,3737.5,3737.4,0.00284212]
[1641066570207,0.02394003,3737.5,3737.3,0.66873]
[1641066572148,1.7631191,3737.4,3737.3,0.66873]
[1641066572548,1.7631191,3737.4,3737.3,0.97214054]
[1641066572749,0.02394003,3737.5,3737.3,0.97214054]
[1641066573150,0.02394003,3737.5,3737.4,0.00284212]
[1641066575196,0.02394003,3737.5,3737.4,4.56959986]
[1641066575397,0.0540727,3737.8,3737.5,6.3]
[1641066575603,0.10824221,3738.3,3737.7,11.083]
[1641066575901,6.8,3739.1,3738.3,3.65]
[1641066576099,6.8,3739.1,3738.4,1.0]
[1641066576402,6.8,3739.1,3738.6,4.4]
[1641066576599,6.8,3739.1,3738.7,6.466]
[1641066576600,0.00227369,3739.0,3738.7,6.466]
[1641066576799,6.8,3739.1,3738.7,6.466]
[1641066576800,1.45614369,3739.1,3738.8,4.7692743]
[1641066577003,1.45614369,3739.1,3738.9,0.683]
[1641066577205,6.8,3739.6,3738.9,1.683]
[1641066577400,6.8,3739.6,3738.9,1.983]
[1641066577700,0.00170527,3739.3,3739.0,4.03971528]
[1641066578000,0.80401,3739.4,3739.1,0.383]
[1641066578199,0.80401,3739.4,3739.1,1.1849204]
[1641066578450,0.80401,3739.4,3739.2,0.66828]
[1641066578656,0.80401,3739.4,3739.3,1.71956]
[1641066580154,6.8,3739.6,3739.3,1.71956]
[1641066580354,6.8,3739.6,3739.3,2.788824]
[1641066580553,0.00113685,3739.5,3739.3,2.788824]
[1641066582605,5.26545261,3739.6,3739.3,2.788824]
[1641066583509,5.26545261,3739.6,3739.4,0.3]
[1641066583711,5.26545261,3739.6,3739.5,0.383]
[1641066584110,1.7631191,3739.6,3739.5,1.05135]
[1641066586950,4.2131191,3739.6,3739.5,1.05135]
[1641066587146,1.7631191,3739.6,3739.5,1.05135]
[1641066587447,1.7631191,3739.6,3739.3,1.33656]
[1641066587647,1.7631191,3739.6,3739.1,0.72329799]
[1641066587846,5.0631191,3739.2,3739.1,0.05476799]
[1641066588048,5.0631191,3739.2,3739.1,0.05363114]
[1641066589350,5.0631191,3739.2,3738.9,1.33697]
[1641066589789,5.0631191,3739.2,3739.0,0.00284212]
[1641066590093,1.7631191,3739.2,3739.0,0.00284212]
[1641066592698,1.7631191,3739.2,3739.1,0.66854]
[1641066592898,4.4631191,3739.2,3739.1,0.66854]
[1641066593100,4.4631191,3739.2,3739.1,0.0022737]
[1641066593300,0.67127212,3738.9,3738.7,0.05363169]
[1641066593575,0.67127212,3738.9,3738.8,0.00397897]
[1641066593778,6.97127212,3738.9,3738.8,0.00397897]
[1641066593976,6.97127212,3738.9,3738.2,0.09223077]
[1641066593977,6.3,3738.8,3738.2,0.09223077]
[1641066594175,8.0631191,3738.3,3738.2,0.09223077]
[1641066594375,11.02493768,3738.3,3738.2,0.09223077]
[1641066594576,11.02493768,3738.3,3738.2,0.09336761]
[1641066594779,5.0631191,3738.3,3738.2,0.09336761]
[1641066595376,5.0631191,3738.3,3738.2,0.00113684]
[1641066595774,5.06981479,3738.3,3738.1,0.00170526]
[1641066597621,1.76981479,3738.3,3738.1,0.67035526]
[1641066597818,0.00669569,3738.3,3738.1,0.67035526]
[1641066598024,0.00669569,3738.3,3738.1,0.97035526]
[1641066599025,0.00669569,3738.3,3738.1,1.97035526]
[1641066599224,0.00669569,3738.3,3738.1,0.97035526]
[1641066599424,1.76981479,3738.3,3738.1,0.97035526]
[1641066600327,1.76981479,3738.3,3738.1,0.67035526]
[1641066601152,0.00669569,3738.3,3738.2,0.383]
[1641066601351,0.00669569,3738.3,3738.2,4.35634816]
[1641066601650,0.00669569,3738.3,3738.2,5.35634816]
[1641066601850,0.00170528,3738.7,3738.2,4.35634816]
[1641066602152,0.00113686,3738.6,3738.4,1.069504]
[1641066602350,0.00113686,3738.6,3738.5,0.383]
[1641066602555,2.48802416,3738.9,3738.5,0.383]
[1641066602556,0.0022737,3738.8,3738.5,0.383]
[1641066602750,0.00113686,3738.6,3738.5,0.383]
[1641066602951,0.00170528,3738.7,3738.5,0.383]
[1641066603154,0.00113686,3738.6,3738.5,1.05145]
[1641066603352,0.00113686,3738.6,3738.5,1.35145]
[1641066603755,0.00113686,3738.6,3738.5,2.68834]
[1641066604154,0.00113686,3738.6,3738.5,2.38834]
[1641066604556,0.00113686,3738.6,3738.5,6.27170859]
[1641066605096,0.00113686,3738.6,3738.5,7.57170859]
[1641066605899,0.00113686,3738.6,3738.5,3.68834]
[1641066606501,0.00113686,3738.6,3738.5,7.52487365]
[1641066606699,0.00113686,3738.6,3738.5,7.52028169]
[1641066607501,0.00113686,3738.6,3738.5,3.68834]
[1641066608437,0.72533972,3738.9,3738.6,1.35958775]
[1641066608643,0.72533972,3738.9,3738.7,1.4524354]
[1641066608848,0.00113684,3738.8,3738.7,1.4524354]
[1641066611746,1.76425594,3738.8,3738.7,1.4524354]
[1641066611945,0.00113684,3738.8,3738.7,1.4524354]
[1641066615494,0.00113684,3738.8,3738.7,1.0694354]
[1641066616546,3.60113684,3738.8,3738.7,0.6684]
[1641066620604,0.00113684,3738.8,3738.7,0.6684]
[1641066624252,0.00113684,3738.8,3738.7,1.0514]
[1641066625451,0.00113684,3738.8,3738.7,4.7514]
[1641066627896,0.00113684,3738.8,3738.7,5.0514]
[1641066628501,0.67493299,3738.9,3738.7,1.3514]
[1641066628697,0.67493299,3738.9,3738.7,2.8218759]
[1641066628898,0.67493299,3738.9,3738.7,3.1218759]
[1641066629699,0.05406733,3739.1,3738.8,3.05]
[1641066630001,0.00113685,3739.0,3738.9,2.0377619]
[1641066636296,0.00113685,3739.0,3738.9,4.5377619]
[1641066638100,0.00113685,3739.0,3738.9,2.0377619]
[1641066639248,0.00113685,3739.0,3738.9,4.5877619]
[1641066640251,0.00113685,3739.0,3738.9,2.0377619]
[1641066643093,0.00113685,3739.0,3738.9,1.3693919]
[1641066644898,0.00113685,3739.0,3738.9,1.0693919]
[1641066646154,0.00113685,3739.0,3738.9,1.3693919]
[1641066646754,1.00113685,3739.0,3738.9,1.0693919]
[1641066650198,1.00113685,3739.0,3738.9,1.3693919]
[1641066650801,0.00113685,3739.0,3738.9,1.3693919]
[1641066656051,0.00113685,3739.0,3738.9,4.1693919]
[1641066659605,2.7631191,3739.2,3739.0,0.4010215]
[1641066659806,1.7631191,3739.2,3739.1,0.66839]
[1641066660206,1.76425595,3739.2,3739.1,0.66839]
[1641066660806,2.76425595,3739.2,3739.1,0.66839]
[1641066666806,1.76425595,3739.2,3739.1,0.66839]
[1641066668856,2.76425595,3739.2,3739.1,0.66839]
[1641066671658,1.76425595,3739.2,3739.1,0.66839]
[1641066672708,2.76425595,3739.2,3739.1,0.66839]
[1641066675819,1.76425595,3739.2,3739.1,0.66839]
[1641066681697,2.76425595,3739.2,3739.1,0.66839]
[1641066683966,1.00113685,3739.2,3739.1,0.66839]
[1641066684467,2.25113685,3739.2,3739.1,0.66839]
[1641066686570,6.36488266,3739.2,3739.1,0.66839]
[1641066689420,2.25113685,3739.2,3739.1,0.66839]
[1641066689817,6.26135634,3739.2,3739.1,0.66839]
[1641066690220,6.26021949,3739.2,3739.1,0.66839]
[1641066691364,2.25,3739.2,3739.1,0.66839]
[1641066692864,6.28504143,3739.2,3739.1,0.66839]
[1641066693867,2.25,3739.2,3739.1,0.66839]
[1641066694800,6.28856221,3739.2,3739.1,0.66839]
[1641066701258,2.25,3739.2,3739.1,0.66839]
[1641066701860,6.24163877,3739.2,3739.1,0.66839]
[1641066702297,2.25,3739.2,3739.1,0.66839]
[1641066702696,6.22449472,3739.2,3739.1,0.66839]
[1641066703300,2.25,3739.2,3739.1,0.66839]
[1641066707256,6.25377697,3739.2,3739.1,0.66839]
[1641066707456,2.25,3739.2,3739.1,0.66839]
[1641066712911,6.26424657,3739.2,3739.1,0.66839]
[1641066713555,2.25,3739.2,3739.1,0.66839]
[1641066716057,6.26197355,3739.2,3739.1,0.66839]
[1641066716257,2.25,3739.2,3739.1,0.66839]
[1641066716456,9.00261099,3739.2,3739.1,0.66839]
[1641066716657,5.0,3739.2,3739.1,0.66839]
[1641066717717,2.25,3739.2,3739.1,0.66839]
[1641066721564,1.0,3739.2,3739.1,0.66839]
[1641066725815,1.0,3739.3,3739.1,0.66839]
[1641066726014,1.0,3739.3,3739.1,1.0694293]
[1641066726216,1.00170527,3739.3,3739.1,1.0694293]
[1641066727821,1.0,3739.2,3739.1,1.0694293]
[1641066728020,1.0,3739.2,3739.1,0.66839]
[1641066728870,1.00170527,3739.3,3739.1,0.66839]
[1641066729472,1.00170527,3739.3,3739.1,1.0694206]
[1641066730976,1.0,3739.2,3739.1,0.66839]
[1641066756916,9.41075498,3739.2,3739.1,0.66839]
[1641066757118,9.41075498,3739.2,3738.7,1.33714]
[1641066757315,4.9331191,3738.8,3738.7,1.33714]
[1641066757715,5.9331191,3738.8,3738.7,1.33714]
[1641066758574,7.1831191,3738.8,3738.7,1.33714]
[1641066759376,11.29717362,3738.8,3738.7,1.33714]
[1641066759577,11.29717362,3738.8,3738.5,0.75523633]
[1641066759578,11.24368615,3738.8,3738.5,0.75523633]
[1641066759778,11.91238615,3738.8,3738.6,0.08656401]
[1641066759981,8.77542508,3738.7,3738.6,0.0888377]
[1641066760780,9.77542508,3738.7,3738.6,0.0888377]
[1641066761383,32.12566123,3738.7,3738.6,0.0888377]
[1641066762214,32.12566123,3738.7,3738.6,0.00227369]
[1641066762409,33.37566123,3738.7,3738.6,0.00227369]
[1641066762608,33.37566123,3738.7,3738.1,0.67384581]
[1641066762809,0.66874,3738.5,3738.2,0.00454739]
[1641066763008,5.6831191,3738.3,3738.2,0.00454739]
[1641066763407,6.9331191,3738.3,3738.2,0.00454739]
[1641066763814,7.9331191,3738.3,3738.2,0.00454739]
[1641066768766,3.9331191,3738.3,3738.2,0.00454739]
[1641066773218,3.89186712,3738.3,3738.2,0.00454739]
[1641066773460,2.25,3738.3,3738.2,0.00454739]
[1641066773659,3.89186712,3738.3,3738.2,0.00454739]
[1641066774763,3.82193101,3738.3,3738.2,0.00454739]
[1641066775361,2.57193101,3738.3,3738.2,1.34180739]
[1641066775563,3.82193101,3738.3,3738.2,1.34180739]
[1641066775962,2.18006389,3738.3,3738.2,1.34180739]
[1641066776163,2.18006389,3738.3,3738.2,1.64180739]
[1641066776365,2.18006389,3738.3,3738.2,2.02480739]
[1641066776563,1.64186712,3738.8,3738.3,6.3]
[1641066776761,1.64186712,3738.8,3738.5,0.66844]
[1641066776960,1.64186712,3738.8,3738.6,1.34545566]
[1641066777206,1.64186712,3738.8,3738.6,2.12952426]
[1641066777407,1.64186712,3738.8,3738.7,0.00170527]
[1641066777605,1.64186712,3738.8,3738.7,0.60170527]
[1641066778009,0.69815518,3739.4,3738.7,0.60170527]
[1641066778213,0.69815518,3739.4,3739.1,0.4010395]
[1641066778409,0.00170527,3739.3,3739.1,0.4010395]
[1641066778810,2.3400223,3739.4,3739.1,0.4010395]
[1641066778811,0.00113685,3739.2,3739.1,0.4010395]
[1641066779310,0.00113685,3739.2,3739.1,1.7378795]
[1641066780969,0.05406679,3739.5,3739.2,5.0]
[1641066781169,0.05406679,3739.5,3739.4,0.66827]
[1641066781566,0.05406679,3739.5,3739.4,0.96827]
[1641066781773,0.05406679,3739.5,3739.4,4.01827]
[1641066782175,0.05406679,3739.5,3739.4,1.96827]
[1641066782774,6.15,3739.8,3739.4,1.96827]
[1641066782973,6.15,3739.8,3739.6,0.4009354]
[1641066783175,0.00284211,3739.7,3739.6,1.0691654]
[1641066783374,6.15,3739.8,3739.6,1.6691654]
[1641066784375,6.15,3739.8,3739.6,2.3373954]
[1641066784814,6.15,3739.8,3739.6,1.6691654]
[1641066785218,7.79186712,3739.8,3739.6,1.0691654]
[1641066786612,1.64186712,3739.8,3739.6,1.0691654]
[1641066789367,1.64186712,3739.8,3739.6,1.3691654]
[1641066790471,40.03305506,3740.0,3739.8,0.6683]
[1641066790867,0.00113685,3739.9,3739.8,0.6683]
[1641066791469,1.64300397,3739.9,3739.8,0.6683]
[1641066794826,0.00113685,3739.9,3739.8,0.6683]
[1641066795629,2.70113685,3739.9,3739.8,0.6683]
[1641066796656,0.00113685,3739.9,3739.8,0.6683]
[1641066801715,0.00113685,3739.9,3739.8,1.74893395]
[1641066802416,0.00113685,3739.9,3739.8,4.69893395]
[1641066804974,0.00113685,3739.9,3739.8,3.6183]
[1641066807414,0.00113685,3739.9,3739.8,6.4683]
[1641066807617,0.00113685,3739.9,3739.8,3.6183]
[1641066808414,0.00113685,3739.9,3739.8,6.1683]
[1641066809818,0.00113685,3739.9,3739.8,3.6183]
[1641066814918,0.00113685,3739.9,3739.8,0.6683]
[1641066815320,2.75113685,3739.9,3739.8,0.6683]
[1641066818322,40.61589191,3740.0,3739.9,2.75]
[1641066818567,40.61589191,3740.0,3739.9,3.133]
[1641066818769,40.61589191,3740.0,3739.9,4.133]
[1641066819170,35.27071191,3740.0,3739.9,4.133]
[1641066819468,34.02071191,3740.0,3739.9,4.133]
[1641066819868,28.67562191,3740.0,3739.9,4.133]
[1641066820468,23.33054191,3740.0,3739.9,4.133]
[1641066820672,23.33054191,3740.0,3739.9,7.68759017]
[1641066821070,17.98544191,3740.0,3739.9,7.68759017]
[1641066821473,17.98544191,3740.0,3739.9,4.133]
[1641066821474,12.63818479,3740.0,3739.9,4.133]
[1641066821673,12.63818479,3740.0,3739.9,1.383]
[1641066821873,12.63818479,3740.0,3739.9,0.383]
[1641066824829,12.63818479,3740.0,3739.9,0.44891743]
[1641066825728,12.63818479,3740.0,3739.9,0.383]
[1641066825973,16.90846284,3740.0,3739.8,0.6683]
[1641066826175,13.30658479,3740.0,3739.8,0.6683]
[1641066826576,14.55658479,3740.0,3739.8,0.6683]
[1641066827377,4.20337226,3739.9,3739.8,0.6683]
[1641066827575,5.45337226,3739.9,3739.8,0.6683]
[1641066827776,6.3,3739.8,3739.5,0.94652708]
[1641066827977,7.94186712,3739.6,3739.5,0.8929]
[1641066828176,7.94186712,3739.6,3738.3,0.8022254]
[1641066828177,6.3,3739.4,3738.3,0.8022254]
[1641066828377,1.64186712,3738.4,3738.0,0.07989175]
[1641066828778,0.01223831,3738.8,3738.0,0.07989175]
[1641066828975,1.64186712,3739.0,3738.0,1.4069856]
[1641066829378,10.8166,3739.2,3738.0,1.7069856]
[1641066829578,1.64186712,3738.2,3738.1,0.66854]
[1641066830316,0.05362938,3738.5,3738.1,0.66854]
[1641066830513,0.05362938,3738.5,3738.3,0.66855]
[1641066831318,1.64186712,3738.9,3738.3,0.66855]
[1641066831715,1.64186712,3738.4,3738.3,0.66855]
[1641066832116,1.64186712,3738.4,3738.3,0.67764478]
[1641066832917,2.89186712,3739.0,3738.3,0.67764478]
[1641066833116,2.89186712,3739.0,3738.4,0.4011264]
[1641066833317,2.89186712,3739.0,3738.7,0.66854]
[1641066833765,2.89186712,3739.0,3738.8,0.00625266]
[1641066834365,2.89186712,3739.0,3738.6,1.33708]
[1641066834366,2.89186712,3739.0,3738.7,0.00682108]
[1641066834766,2.89186712,3739.0,3738.9,0.66854]
[1641066835267,2.89186712,3739.0,3738.9,0.67422423]
[1641066835268,5.59186712,3739.0,3738.9,0.67422423]
[1641066837520,4.34186712,3739.0,3738.9,0.67422423]
[1641066839725,4.34186712,3739.0,3738.9,0.00568423]
[1641066840022,4.34186712,3739.0,3738.8,0.66858]
[1641066840522,4.34186712,3739.0,3738.9,0.00568423]
[1641066841566,5.59186712,3739.0,3738.9,0.00568423]
[1641066841767,9.73551358,3739.0,3738.9,0.00568423]
[1641066841968,6.8573697,3739.0,3738.9,0.00568423]
[1641066842172,2.71372324,3739.0,3738.9,0.00568423]
[1641066842376,6.84942763,3739.0,3738.9,0.00568423]
[1641066842872,2.71372324,3739.0,3738.9,0.00568423]
[1641066843471,1.25,3739.0,3738.9,0.00568423]
[1641066843873,2.71372324,3739.0,3738.9,0.00568423]
[1641066847719,1.25,3739.0,3738.9,0.00568423]
[1641066847916,1.25,3739.0,3738.9,2.80568423]
[1641066848118,1.25,3739.0,3738.9,3.48868423]
[1641066848575,0.05362839,3739.3,3739.1,0.66833]
[1641066849080,0.05362839,3739.3,3739.2,0.00397896]
[1641066849376,1.46372324,3739.8,3739.2,1.26665817]
[1641066849778,1.46372324,3739.8,3739.3,0.00341054]
[1641066850776,1.46372324,3739.8,3739.5,0.66838]
[1641066851176,1.46372324,3739.8,3739.6,0.00170527]
[1641066851777,1.46372324,3739.8,3739.5,0.00227369]
[1641066852224,1.46372324,3739.8,3739.6,0.4009974]
[1641066852723,1.46372324,3739.8,3739.7,0.66950685]
[1641066854925,4.06372324,3739.8,3739.7,0.66950685]
[1641066857569,5.31372324,3739.8,3739.7,0.66950685]
[1641066857868,2.70661469,3739.8,3739.7,0.66950685]
[1641066858571,1.45661469,3739.8,3739.7,0.66950685]
[1641066862726,3.90661469,3739.8,3739.7,0.66950685]
[1641066863773,1.45661469,3739.8,3739.7,0.66950685]
[1641066871571,3.3,3739.7,3739.6,0.63862214]
[1641066879686,7.41468638,3739.7,3739.6,0.63862214]
[1641066879891,3.3,3739.7,3739.6,0.63862214]
[1641066885326,7.36420878,3739.7,3739.6,0.63862214]
[1641066885728,7.36420878,3739.7,3739.4,0.66849]
[1641066885980,8.03268878,3739.7,3739.4,0.66849]
[1641066886179,8.03268878,3739.7,3739.5,0.00113684]
[1641066886376,6.76621104,3739.6,3739.5,0.00113684]
[1641066887579,3.9,3739.6,3739.5,0.00113684]
[1641066888380,7.99460801,3739.6,3739.5,0.00113684]
[1641066888684,3.9,3739.6,3739.5,0.00113684]
[1641066889580,2.65,3739.6,3739.5,0.00113684]